lending/lending_fUSD_20240603
["ID","MTS","AMOUNT","RATE_DAILY","PERIOD"]
[328461901,1717417853565,-500.0,0.0003329,2]
[328461902,1717417853574,-500.0,0.0003329,2]
[328461903,1717417853583,-500.0,0.0003329,2]
[328461904,1717417853593,-340.0137067,0.0003329,2]
[328461905,1717417853605,-159.9862933,0.0003329,2]
[328461906,1717417853615,-500.0,0.0003329,2]
[328461907,1717417853624,-500.0,0.0003329,2]
[328461908,1717417853634,-500.0,0.0003329,2]
[328461909,1717417853643,-500.0,0.0003329,2]
[328461910,1717417853652,-500.0,0.0003329,2]
[328461911,1717417853661,-500.0,0.0003329,2]
[328461912,1717417853670,-500.0,0.0003329,2]
[328461913,1717417853679,-500.0,0.0003329,2]
[328461914,1717417853688,-500.0,0.0003329,2]
[328461915,1717417853698,-500.0,0.0003329,2]
[328461916,1717417853708,-500.0,0.0003329,2]
[328461917,1717417853717,-500.0,0.0003329,2]
[328461918,1717417853728,-500.0,0.0003329,2]
[328461919,1717417853738,-500.0,0.0003329,2]
[328461920,1717417853748,-500.0,0.0003329,2]
[328461921,1717417853758,-500.0,0.0003329,2]
[328461922,1717417853769,-500.0,0.0003329,2]
[328461923,1717417853779,-500.0,0.0003329,2]
[328461924,1717417853788,-500.0,0.0003329,2]
[328461925,1717417853798,-500.0,0.0003329,2]
[328461926,1717417853810,-500.0,0.0003329,2]
[328461927,1717417853820,-500.0,0.0003329,2]
[328461928,1717417853830,-500.0,0.0003329,2]
[328461929,1717417853840,-500.0,0.0003329,2]
[328461930,1717417853850,-500.0,0.0003329,2]
[328461931,1717417853860,-500.0,0.0003329,2]
[328461932,1717417853869,-500.0,0.0003329,2]
[328461933,1717417853879,-500.0,0.0003329,2]
[328461934,1717417853889,-500.0,0.0003329,2]
[328461935,1717417853899,-500.0,0.0003329,2]
[328461936,1717417853909,-150.5,0.0003329,15]
[328461937,1717417853921,-1008.14,0.0003329,2]
[328461938,1717417853931,-500.0,0.00033294,4]
[328461939,1717417853941,-4034.9142978,0.00033295,2]
[328461940,1717417853953,-1625.7938459,0.00033295,2]
[328461941,1717417853969,-4615.33547666,0.00033295,2]
[328461942,1717417853978,-155.0,0.00033297,4]
[328461943,1717417853987,-271.57771371,0.00033297,4]
[328461944,1717417853999,-4187.97781044,0.00033297,2]
[328461945,1717417854012,-1393.44997268,0.00033297,2]
[328461946,1717417854024,-572.62909829,0.00033298,7]
[328461947,1717417854032,-2299.89135016,0.00033298,4]
[328461948,1717417854042,-155.57224028,0.00033298,4]
[328461949,1717417854052,-195.82250515,0.00033298,4]
[328461950,1717417854061,-156.31768174,0.00033298,4]
[328461951,1717417854071,-155.34879276,0.00033298,4]
[328461952,1717417854081,-1559.22035758,0.00033298,4]
[328461953,1717417854095,-8396.75871354,0.00033298,4]
[328461954,1717417854106,-6497.36492728,0.00033298,4]
[328461955,1717417854118,-2108.01494557,0.00033298,4]
[328461956,1717417854128,-155.39928446,0.00033298,2]
[328461957,1717417854137,-298.72538783,0.00033298,4]
[328461958,1717417854147,-1184.27412854,0.00033298,4]
[328461959,1717417854157,-5000.0,0.00033298,2]
[328461960,1717417854166,-440.67240069,0.00033298,4]
[328461961,1717417854175,-158.59829186,0.00033298,4]
[328461962,1717417854185,-185.02441207,0.00033298,4]
[328461963,1717417854194,-287.17375584,0.00033298,4]
[328461964,1717417854204,-644.78269386,0.00033298,4]
[328461965,1717417854213,-2004.73823716,0.00033298,4]
[328461966,1717417854223,-234.86771419,0.00033298,4]
[328461967,1717417854232,-851.4453313,0.00033298,10]
[328461968,1717417854241,-155.28330462,0.00033298,2]
[328461969,1717417854250,-155.24988843,0.00033298,4]
[328461970,1717417854260,-155.48684038,0.00033298,4]
[328461971,1717417854272,-155.0,0.00033298,4]
[328461972,1717417854281,-433.9343719,0.00033298,4]
[328461973,1717417854290,-2067.02800321,0.00033298,4]
[328461974,1717417854300,-155.67158172,0.00033298,2]
[328461975,1717417854310,-608.7011,0.00033298,4]
[328461976,1717417854320,-191.98311706,0.00033298,4]
[328461977,1717417854330,-2021.25239209,0.00033298,2]
[328461978,1717417854340,-155.3104335,0.00033298,4]
[328461979,1717417854350,-155.0,0.00033298,4]
[328461980,1717417854360,-189.93428211,0.00033298,4]
[328461981,1717417854369,-2333.31828049,0.00033298,4]
[328461982,1717417854379,-187.46921704,0.00033298,4]
[328461983,1717417854388,-2188.02281065,0.00033298,4]
[328461984,1717417854398,-204.9501833,0.00033298,4]
[328461985,1717417854408,-540.51220902,0.00033298,4]
[328461986,1717417854418,-306.53561288,0.00033298,4]
[328461987,1717417854428,-5510.81382945,0.00033298,4]
[328461988,1717417854437,-10524.19988808,0.00033298,4]
[328461989,1717417854446,-1586.36181369,0.00033298,4]
[328461990,1717417854456,-1233.96385287,0.00033298,4]
[328461991,1717417854466,-207.58824107,0.00033298,4]
[328461992,1717417854475,-155.0,0.00033298,4]
[328461993,1717417854485,-234.40611588,0.00033298,4]
[328461994,1717417854494,-481.38899408,0.00033298,4]
[328461995,1717417854504,-517.64528274,0.00033298,4]
[328461996,1717417854513,-8650.33386233,0.00033299,7]
[328461997,1717417854523,-4000.0,0.00033299,2]
[328461998,1717417854533,-500.0,0.00033299,4]
[328461999,1717417854543,-500.0,0.00033299,4]
[328462000,1717417854552,-500.0,0.00033299,4]
[328462001,1717417854562,-610.00167737,0.00033299,4]
[328462002,1717417854572,-5123.43843143,0.000333,5]
[328462003,1717417854581,-506282.81918752,0.000333,5]
[328462004,1717417854594,-3478.1203568,0.000333,5]
[328462005,1717417854605,-850.82786586,0.000333,5]
[328462006,1717417854616,-4042.17891184,0.000333,5]
[328462007,1717417854628,-204804.80986287,0.000333,5]
[328462008,1717417854639,-18002.70300256,0.000333,5]
[328462009,1717417854651,-37372.81927632,0.000333,5]
[328462010,1717417854662,-394.48278515,0.000333,5]
[328462011,1717417854681,-2492.56313245,0.000333,5]
[328462012,1717417854692,-508.1055248,0.000333,5]
[328462013,1717417854704,-621.91316261,0.000333,5]
[328462014,1717417854716,-1835.89565874,0.000333,5]
[328462015,1717417854727,-4141.24999975,0.000333,5]
[328462016,1717417854739,-56132.70116354,0.000333,5]
[328462017,1717417854816,-226.51830624,0.000201,2]
[328462018,1717417854826,-166.16802359,0.00031733,15]
[328462019,1717417854838,-5702.10434424,0.00031733,15]
[328462020,1717417854851,-332.55378153,0.00031733,15]
[328462021,1717417854863,-212.13267957,0.00031733,15]
[328462022,1717417854873,-577.99175918,0.00033298,2]
[328462023,1717417854885,-1006.8,0.00033298,2]
[328462024,1717417854897,-1509.82203168,0.00033298,2]
[328462025,1717417854907,-21264.49106437,0.000333,5]
[328462026,1717417854923,-6047.21959531,0.000333,5]
[328462027,1717417854935,-12982.99045993,0.000333,5]
[328462028,1717417854947,-309.4598217,0.000333,5]
[328462029,1717417854959,-4146.64955006,0.000333,5]
[328462030,1717417854972,-255.5202649,0.000333,5]
[328462031,1717417855770,300.19665809,0.00017259,2]
[328462032,1717417888067,2608.07457883,0.00016914,2]
[328462033,1717417982583,150.0,0.00019725,2]
[328462034,1717418024382,4247403.16299932,0.00014,2]
[328462035,1717418142848,940.4956683,0.00017259,2]
[328462037,1717418199885,1122105.15316536,0.00014,2]
[328462038,1717418235232,209.58703552,0.0001,2]
[328462039,1717418608894,-226.51830624,0.000201,2]
[328462648,1717419033151,-153.0,0.00024384,2]
[328462649,1717419033160,-151.93,0.00024384,2]
[328462650,1717419033170,-471.0,0.000266,3]
[328462651,1717419033179,-200.73962183,0.00028,2]
[328462652,1717419033190,-433.78,0.00028092,2]
[328462653,1717419033199,-2751.0,0.00028798,2]
[328462654,1717419033208,-201.16,0.00029038,2]
[328462655,1717419033217,-250.0,0.00029074,2]
[328462656,1717419033226,-210.09,0.00029095,2]
[328462657,1717419033236,-2377.65390821,0.00029285,2]
[328462658,1717419033322,-1280.56006859,0.00029285,2]
[328462659,1717419033376,-3419.80072355,0.00029285,2]
[328462660,1717419033443,-16821.98529965,0.00029285,2]
[328462661,1717419033452,-585.31,0.00029301,2]
[328462662,1717419033462,-154.75736264,0.00029399,2]
[328462663,1717419033472,-150.0,0.00029507,2]
[328462664,1717419033482,-499.99,0.00029535,2]
[328462665,1717419033491,-157.67588856,0.00029784,2]
[328462666,1717419033500,-51125.28144909,0.000299,7]
[328462675,1717419038240,-824.23,0.000299,7]
[328462676,1717419038411,-1998.63553081,0.000299,7]
[328462677,1717419038423,-998.82341963,0.000299,7]
[328462678,1717419038435,-4067.04115661,0.000299,7]
[328462679,1717419038445,-178.82276987,0.000299,2]
[328462680,1717419038454,-4021.21603599,0.000299,2]
[328462681,1717419038468,-157.67588856,0.00029917,2]
[328462682,1717419038477,-236.99700549,0.00029975,2]
[328462683,1717419038487,-824.23,0.0002999,3]
[328462684,1717419038497,-499.99,0.0002999,2]
[328462685,1717419038507,-909.50372096,0.0003,4]
[328462686,1717419038516,-628.19496813,0.0003,4]
[328462687,1717419038525,-788.40930707,0.0003,2]
[328462688,1717419038535,-1520.29508128,0.0003,2]
[328462689,1717419038544,-13228.77346226,0.0003,2]
[328462691,1717419038599,-176118.23827737,0.0003,2]
[328462692,1717419038608,-1869.24230916,0.0003,4]
[328462693,1717419038618,-152.48854642,0.00030075,7]
[328462694,1717419038627,-14030.63616465,0.00030135,4]
[328462695,1717419038637,-500.0,0.00030136,4]
[328462696,1717419038646,-500.0,0.00030136,4]
[328462698,1717419038656,-500.0,0.00030136,4]
[328462700,1717419038666,-500.0,0.00030136,4]
[328462702,1717419038675,-500.0,0.00030136,4]
[328462704,1717419038684,-500.0,0.00030136,4]
[328462706,1717419038694,-500.0,0.00030136,4]
[328462708,1717419038703,-500.0,0.00030136,4]
[328462710,1717419038713,-526.19,0.00030136,4]
[328462712,1717419038723,-500.0,0.00030136,4]
[328462715,1717419038732,-500.0,0.00030136,4]
[328462716,1717419038742,-500.0,0.00030136,4]
[328462719,1717419038751,-500.0,0.00030136,4]
[328462721,1717419038761,-500.0,0.00030136,4]
[328462724,1717419038770,-500.0,0.00030136,4]
[328462725,1717419038780,-500.0,0.00030136,4]
[328462727,1717419038789,-500.0,0.00030136,4]
[328462729,1717419038799,-500.0,0.00030136,4]
[328462731,1717419038809,-521.82,0.00030136,4]
[328462734,1717419038818,-500.0,0.00030136,4]
[328462735,1717419038827,-500.0,0.00030136,4]
[328462738,1717419038837,-500.0,0.00030136,4]
[328462739,1717419038846,-500.0,0.00030136,4]
[328462742,1717419038856,-500.0,0.00030136,4]
[328462743,1717419038865,-500.0,0.00030136,4]
[328462746,1717419038875,-500.0,0.00030136,4]
[328462748,1717419038884,-500.0,0.00030136,4]
[328462750,1717419038893,-500.0,0.00030136,4]
[328462752,1717419038902,-620.8822803,0.00030136,4]
[328462753,1717419038911,-500.0,0.00030136,4]
[328462755,1717419038920,-500.0,0.00030136,4]
[328462757,1717419038929,-500.0,0.00030136,4]
[328462759,1717419038938,-500.0,0.00030136,4]
[328462761,1717419038948,-500.0,0.00030136,4]
[328462763,1717419038958,-500.0,0.00030136,4]
[328462764,1717419038967,-500.0,0.00030136,4]
[328462766,1717419038976,-613.26,0.00030136,4]
[328462767,1717419038985,-500.0,0.00030136,4]
[328462768,1717419038994,-500.0,0.00030136,4]
[328462769,1717419039003,-500.0,0.00030136,4]
[328462770,1717419039012,-500.0,0.00030136,4]
[328462771,1717419039021,-500.0,0.00030136,4]
[328462772,1717419039031,-500.0,0.00030136,4]
[328462773,1717419039040,-500.0,0.00030136,4]
[328462774,1717419039049,-500.0,0.00030136,4]
[328462775,1717419039058,-876.83,0.00030136,4]
[328462776,1717419039068,-500.0,0.00030136,4]
[328462777,1717419039078,-500.0,0.00030136,4]
[328462778,1717419039088,-500.0,0.00030136,4]
[328462779,1717419039097,-500.0,0.00030136,4]
[328462780,1717419039106,-511.94499528,0.00030136,4]
[328462781,1717419039116,-1607.76,0.00030136,4]
[328462782,1717419039125,-500.0,0.00030136,4]
[328462783,1717419039134,-238.06407932,0.00030136,4]
[328462784,1717419039143,-500.0,0.00030136,4]
[328462785,1717419039153,-500.0,0.00030136,4]
[328462786,1717419039162,-500.0,0.00030136,4]
[328462787,1717419039171,-533.84,0.00030136,4]
[328462788,1717419039180,-500.0,0.00030136,4]
[328462789,1717419039190,-500.0,0.00030136,4]
[328462790,1717419039201,-500.0,0.00030136,4]
[328462791,1717419039210,-500.0,0.00030136,4]
[328462792,1717419039219,-500.0,0.00030136,4]
[328462793,1717419039229,-500.0,0.00030136,4]
[328462794,1717419039238,-500.0,0.00030136,4]
[328462795,1717419039247,-500.0,0.00030136,4]
[328462796,1717419039256,-500.0,0.00030136,4]
[328462797,1717419039265,-500.0,0.00030136,4]
[328462798,1717419039274,-500.0,0.00030136,4]
[328462799,1717419039283,-500.0,0.00030136,4]
[328462800,1717419039293,-500.0,0.00030136,4]
[328462801,1717419039306,-1476.97,0.00030136,4]
[328462802,1717419039315,-500.0,0.00030136,4]
[328462803,1717419039324,-500.0,0.00030136,4]
[328462804,1717419039334,-500.0,0.00030136,4]
[328462805,1717419039343,-5976.21,0.00030136,4]
[328462806,1717419039353,-500.0,0.00030136,4]
[328462807,1717419039362,-500.0,0.00030136,4]
[328462808,1717419039371,-506.33792363,0.00030136,4]
[328462809,1717419039382,-500.0,0.00030136,4]
[328462810,1717419039392,-500.0,0.00030136,4]
[328462811,1717419039401,-500.0,0.00030136,4]
[328462812,1717419039410,-500.0,0.00030136,4]
[328462813,1717419039420,-500.0,0.00030136,4]
[328462814,1717419039429,-500.0,0.00030136,4]
[328462815,1717419039439,-619.18,0.00030136,4]
[328462816,1717419039450,-500.0,0.00030136,4]
[328462817,1717419039459,-500.0,0.00030136,4]
[328462818,1717419039469,-500.0,0.00030136,4]
[328462819,1717419039478,-500.0,0.00030136,4]
[328462820,1717419039488,-500.0,0.00030136,4]
[328462821,1717419039497,-500.0,0.00030136,4]
[328462822,1717419039506,-500.0,0.00030136,4]
[328462823,1717419039516,-1248.82,0.00030136,4]
[328462824,1717419039525,-500.0,0.00030136,4]
[328462825,1717419039534,-500.0,0.00030136,4]
[328462826,1717419039544,-500.0,0.00030136,4]
[328462827,1717419039554,-500.0,0.00030136,4]
[328462828,1717419039563,-500.0,0.00030136,4]
[328462829,1717419039572,-500.0,0.00030136,4]
[328462830,1717419039582,-154.75736264,0.00030175,7]
[328462831,1717419039592,-160.52187873,0.00030239,7]
[328462832,1717419039601,-178.82276981,0.00030267,15]
[328462833,1717419039610,-4021.21603592,0.00030267,15]
[328462834,1717419039620,-433.78,0.00030356,2]
[328462835,1717419039629,-151.245011,0.00030399,2]
[328462836,1717419039638,-167.212512,0.00030399,2]
[328462837,1717419039648,-186.658462,0.00030399,2]
[328462838,1717419039658,-155.159554,0.00030399,2]
[328462839,1717419039667,-500.0,0.0003041,4]
[328462840,1717419039677,-500.0,0.0003041,4]
[328462841,1717419039687,-500.0,0.0003041,4]
[328462842,1717419039698,-500.0,0.0003041,4]
[328462843,1717419039706,-500.0,0.0003041,4]
[328462844,1717419039716,-500.0,0.0003041,4]
[328462845,1717419039725,-500.0,0.0003041,4]
[328462846,1717419039734,-526.19,0.0003041,4]
[328462847,1717419039743,-500.0,0.0003041,4]
[328462848,1717419039752,-500.0,0.0003041,4]
[328462849,1717419039761,-500.0,0.0003041,4]
[328462850,1717419039771,-500.0,0.0003041,4]
[328462851,1717419039780,-500.0,0.0003041,4]
[328462852,1717419039789,-540.51,0.0003041,4]
[328462853,1717419039799,-500.0,0.0003041,4]
[328462854,1717419039808,-521.82,0.0003041,4]
[328462855,1717419039818,-500.0,0.0003041,4]
[328462856,1717419039827,-500.0,0.0003041,4]
[328462857,1717419039837,-500.0,0.0003041,4]
[328462858,1717419039846,-513.25692985,0.0003041,4]
[328462859,1717419039855,-500.0,0.0003041,4]
[328462860,1717419039864,-480.82918147,0.0003041,4]
[328462862,1717419040455,-500.0,0.00030136,4]
[328462863,1717419040464,-500.0,0.00030136,4]
[328462864,1717419040474,-19.17081853,0.0003041,4]
[328462865,1717419040484,-500.0,0.0003041,4]
[328462866,1717419040494,-500.0,0.0003041,4]
[328462867,1717419040503,-500.0,0.0003041,4]
[328462868,1717419040513,-500.0,0.0003041,4]
[328462869,1717419040522,-500.0,0.0003041,4]
[328462870,1717419040531,-500.0,0.0003041,4]
[328462871,1717419040541,-500.0,0.0003041,4]
[328462872,1717419040550,-500.0,0.0003041,4]
[328462873,1717419040560,-500.0,0.0003041,4]
[328462874,1717419040569,-500.0,0.0003041,4]
[328462875,1717419040578,-500.0,0.0003041,4]
[328462876,1717419040587,-500.0,0.0003041,4]
[328462877,1717419040597,-500.0,0.0003041,4]
[328462878,1717419040607,-500.0,0.0003041,4]
[328462879,1717419040617,-876.83,0.0003041,4]
[328462880,1717419040627,-500.0,0.0003041,4]
[328462881,1717419040636,-500.0,0.0003041,4]
[328462882,1717419040645,-500.0,0.0003041,4]
[328462883,1717419040654,-500.0,0.0003041,4]
[328462884,1717419040664,-1607.76,0.0003041,4]
[328462885,1717419040673,-500.0,0.0003041,4]
[328462886,1717419040682,-500.0,0.0003041,4]
[328462887,1717419040691,-500.0,0.0003041,4]
[328462888,1717419040701,-500.0,0.0003041,4]
[328462889,1717419040711,-533.84,0.0003041,4]
[328462890,1717419040719,-500.0,0.0003041,4]
[328462891,1717419040729,-500.0,0.0003041,4]
[328462892,1717419040739,-500.0,0.0003041,4]
[328462893,1717419040748,-500.0,0.0003041,4]
[328462894,1717419040756,-500.0,0.0003041,4]
[328462895,1717419040766,-74.90866681,0.0003041,4]
[328462896,1717419041456,-425.09133319,0.0003041,4]
[328462897,1717419041466,-500.0,0.0003041,4]
[328462898,1717419041476,-8.83487289,0.0003041,4]
[328462899,1717419041487,-491.16512711,0.0003041,4]
[328462900,1717419041496,-500.0,0.0003041,4]
[328462901,1717419041505,-500.0,0.0003041,4]
[328462902,1717419041515,-500.0,0.0003041,4]
[328462903,1717419041524,-500.0,0.0003041,4]
[328462904,1717419041533,-1476.97,0.0003041,4]
[328462905,1717419041542,-275.59227289,0.0003041,4]
[328462906,1717419041552,-500.0,0.0003041,4]
[328462907,1717419041560,-5976.21,0.0003041,4]
[328462908,1717419041570,-500.0,0.0003041,4]
[328462909,1717419041579,-500.0,0.0003041,4]
[328462910,1717419041589,-500.0,0.0003041,4]
[328462911,1717419041599,-500.0,0.0003041,4]
[328462912,1717419041608,-500.0,0.0003041,4]
[328462913,1717419041618,-500.0,0.0003041,4]
[328462914,1717419041627,-500.0,0.0003041,4]
[328462915,1717419041636,-500.0,0.0003041,4]
[328462916,1717419041646,-619.18,0.0003041,4]
[328462917,1717419041655,-500.0,0.0003041,4]
[328462918,1717419041664,-500.0,0.0003041,4]
[328462920,1717419041673,-500.0,0.0003041,4]
[328462922,1717419041682,-500.0,0.0003041,4]
[328462924,1717419041691,-500.0,0.0003041,4]
[328462926,1717419041701,-500.0,0.0003041,4]
[328462927,1717419041710,-1248.82,0.0003041,4]
[328462929,1717419041719,-500.0,0.0003041,4]
[328462931,1717419041729,-500.0,0.0003041,4]
[328462933,1717419041738,-248.11,0.0003041,4]
[328462934,1717419041747,-500.0,0.0003041,4]
[328462935,1717419041756,-500.0,0.0003041,4]
[328462936,1717419041765,-236.99700543,0.00030436,2]
[328462937,1717419041775,-322.94937795,0.00030584,2]
[328462938,1717419041784,-178.82276981,0.00030633,15]
[328462939,1717419041793,-4021.21603592,0.00030633,15]
[328462940,1717419041803,-500.0,0.00030684,4]
[328462941,1717419041812,-500.0,0.00030684,4]
[328462942,1717419041821,-500.0,0.00030684,4]
[328462943,1717419041831,-500.0,0.00030684,4]
[328462944,1717419041840,-500.0,0.00030684,4]
[328462945,1717419041850,-500.0,0.00030684,4]
[328462946,1717419041860,-526.19,0.00030684,4]
[328462947,1717419041870,-500.0,0.00030684,4]
[328462948,1717419041879,-500.0,0.00030684,4]
[328462949,1717419041888,-500.0,0.00030684,4]
[328462950,1717419041897,-500.0,0.00030684,4]
[328462951,1717419041906,-500.0,0.00030684,4]
[328462952,1717419041916,-500.0,0.00030684,4]
[328462953,1717419041925,-521.82,0.00030684,4]
[328462954,1717419041934,-500.0,0.00030684,4]
[328462955,1717419041943,-500.0,0.00030684,4]
[328462956,1717419041953,-500.0,0.00030684,4]
[328462957,1717419041963,-500.0,0.00030684,4]
[328462958,1717419041973,-500.0,0.00030684,4]
[328462959,1717419041982,-500.0,0.00030684,4]
[328462960,1717419041991,-500.0,0.00030684,4]
[328462961,1717419042000,-500.0,0.00030684,4]
[328462962,1717419042009,-500.0,0.00030684,4]
[328462963,1717419042018,-500.0,0.00030684,4]
[328462964,1717419042027,-500.0,0.00030684,4]
[328462965,1717419042037,-876.83,0.00030684,4]
[328462966,1717419042046,-500.0,0.00030684,4]
[328462967,1717419042055,-500.0,0.00030684,4]
[328462968,1717419042064,-500.0,0.00030684,4]
[328462969,1717419042073,-500.0,0.00030684,4]
[328462970,1717419042083,-1607.76,0.00030684,4]
[328462971,1717419042093,-500.0,0.00030684,4]
[328462972,1717419042102,-453.62835716,0.00030684,4]
[328462973,1717419042111,-500.0,0.00030684,4]
[328462974,1717419042121,-500.0,0.00030684,4]
[328462975,1717419042130,-533.84,0.00030684,4]
[328462976,1717419042139,-500.0,0.00030684,4]
[328462977,1717419042149,-500.0,0.00030684,4]
[328462978,1717419042158,-500.0,0.00030684,4]
[328462979,1717419042168,-500.0,0.00030684,4]
[328462980,1717419042179,-500.0,0.00030684,4]
[328462981,1717419042188,-500.0,0.00030684,4]
[328462982,1717419042199,-500.0,0.00030684,4]
[328462983,1717419042209,-500.0,0.00030684,4]
[328462984,1717419042218,-500.0,0.00030684,4]
[328462985,1717419042228,-500.0,0.00030684,4]
[328462986,1717419042237,-500.0,0.00030684,4]
[328462987,1717419042246,-1476.97,0.00030684,4]
[328462988,1717419042255,-500.0,0.00030684,4]
[328462989,1717419042265,-5976.21,0.00030684,4]
[328462990,1717419042274,-500.0,0.00030684,4]
[328462991,1717419042423,-500.0,0.00030684,4]
[328462992,1717419042432,-500.0,0.00030684,4]
[328462993,1717419042442,-500.0,0.00030684,4]
[328462994,1717419042454,-500.0,0.00030684,4]
[328462995,1717419042463,-500.0,0.00030684,4]
[328462996,1717419042473,-500.0,0.00030684,4]
[328462997,1717419042483,-619.18,0.00030684,4]
[328462998,1717419042492,-500.0,0.00030684,4]
[328462999,1717419042501,-500.0,0.00030684,4]
[328463000,1717419042510,-500.0,0.00030684,4]
[328463001,1717419042519,-500.0,0.00030684,4]
[328463002,1717419042528,-500.0,0.00030684,4]
[328463003,1717419042537,-500.0,0.00030684,4]
[328463004,1717419042546,-1248.82,0.00030684,4]
[328463005,1717419042555,-500.0,0.00030684,4]
[328463006,1717419042565,-500.0,0.00030684,4]
[328463007,1717419042574,-500.0,0.00030684,4]
[328463008,1717419042583,-7500.0,0.000307,2]
[328463009,1717419042593,-73973.58302551,0.000308,2]
[328463010,1717419042602,-236.99700543,0.00030896,2]
[328463011,1717419042612,-155.159554,0.00030905,2]
[328463012,1717419042622,-500.0,0.00030958,4]
[328463013,1717419042631,-500.0,0.00030958,4]
[328463014,1717419042641,-500.0,0.00030958,4]
[328463015,1717419042650,-500.0,0.00030958,4]
[328463016,1717419042659,-500.0,0.00030958,4]
[328463017,1717419042669,-500.0,0.00030958,4]
[328463018,1717419042678,-526.19,0.00030958,4]
[328463019,1717419042688,-243.3,0.00030958,4]
[328463020,1717419042697,-500.0,0.00030958,4]
[328463021,1717419042706,-500.0,0.00030958,4]
[328463022,1717419042714,-500.0,0.00030958,4]
[328463023,1717419042724,-500.0,0.00030958,4]
[328463024,1717419042733,-500.0,0.00030958,4]
[328463025,1717419042743,-521.82,0.00030958,4]
[328463026,1717419042753,-500.0,0.00030958,4]
[328463027,1717419042763,-500.0,0.00030958,4]
[328463028,1717419042773,-500.0,0.00030958,4]
[328463029,1717419042782,-493.15045242,0.00030958,4]
[328463030,1717419042792,-500.0,0.00030958,4]
[328463031,1717419042802,-500.0,0.00030958,4]
[328463032,1717419042812,-500.0,0.00030958,4]
[328463033,1717419042822,-500.0,0.00030958,4]
[328463034,1717419042831,-387.9,0.00030958,4]
[328463035,1717419042840,-300.15954713,0.00030958,4]
[328463036,1717419042850,-229.75,0.00030958,4]
[328463037,1717419042859,-876.83,0.00030958,4]
[328463038,1717419042869,-500.0,0.00030958,4]
[328463039,1717419042878,-500.0,0.00030958,4]
[328463040,1717419042888,-530.95,0.00030958,4]
[328463041,1717419042898,-500.0,0.00030958,4]
[328463042,1717419042907,-1607.76,0.00030958,4]
[328463043,1717419042917,-500.0,0.00030958,4]
[328463044,1717419042926,-500.0,0.00030958,4]
[328463045,1717419042935,-500.0,0.00030958,4]
[328463046,1717419042944,-533.84,0.00030958,4]
[328463047,1717419042954,-500.0,0.00030958,4]
[328463048,1717419042963,-500.0,0.00030958,4]
[328463049,1717419042973,-500.0,0.00030958,4]
[328463050,1717419042982,-500.0,0.00030958,4]
[328463051,1717419042991,-500.0,0.00030958,4]
[328463052,1717419043000,-500.0,0.00030958,4]
[328463053,1717419043009,-500.0,0.00030958,4]
[328463054,1717419043019,-500.0,0.00030958,4]
[328463055,1717419043028,-500.0,0.00030958,4]
[328463056,1717419043037,-500.0,0.00030958,4]
[328463057,1717419043046,-500.0,0.00030958,4]
[328463058,1717419043055,-1476.97,0.00030958,4]
[328463059,1717419043064,-500.0,0.00030958,4]
[328463060,1717419043075,-5976.21,0.00030958,4]
[328463061,1717419043084,-233.18686633,0.00030958,4]